fUSD/lending_fUSD_20250204
["ID","MTS","AMOUNT","RATE_DAILY","PERIOD"]
[351630109,1738674642979,-191.599993,9.991e-05,2]
[351630110,1738674642990,-267.76,9.991e-05,2]
[351630111,1738674643002,-2132.97223676,0.0001,2]
[351630112,1738674643033,-8880.41721204,0.0001,2]
[351630113,1738674643092,-1599.69617471,0.0001,2]
[351630119,1738674645867,-500.0,9.991e-05,2]
[351630120,1738674645876,-157.94276254,0.0001,2]
[351630121,1738674645936,-1843.65503833,0.0001,2]
[351630122,1738674645948,-420.4240141,0.0001,2]
[351630123,1738674646214,-348.547565,0.0001,2]
[351630125,1738674646226,-12054.56199998,0.0001,2]
[351630170,1738675832044,-305.98,8.219e-05,2]
[351630171,1738675832332,-478.31588386,8.219e-05,2]
[351630172,1738675832343,-621.00000525,8.219e-05,2]
[351630173,1738675832355,-229.84411089,8.219e-05,2]
[351630174,1738675832365,-500.0,8.446e-05,2]
[351630175,1738675832374,-500.0,8.658e-05,2]
[351630176,1738675832384,-1407.24546414,8.753e-05,2]
[351630177,1738675832393,-1407.24546414,8.756e-05,2]
[351630179,1738675832403,-1407.24546414,8.77e-05,2]
[351630180,1738675832414,-1407.24546414,8.777e-05,2]
[351630182,1738675832425,-67946.85719872,8.799e-05,2]
[351630185,1738675832436,-7397.31683383,8.799e-05,2]
[351630487,1738675837868,-605.72030286,8.799e-05,2]
[351630488,1738675837934,-6265.63227047,8.799e-05,2]
[351630489,1738675838341,-1111.02221999,8.799e-05,2]
[351630490,1738675838353,-1797.69740125,8.799e-05,2]
[351630491,1738675838415,-57370.54016579,8.799e-05,2]
[351630492,1738675838426,-503.69,8.799e-05,2]
[351630493,1738675838435,-500.0,8.799e-05,2]
[351630494,1738675838444,-500.0,8.799e-05,2]
[351630495,1738675838454,-796.19,8.799e-05,2]
[351630496,1738675838465,-500.0,8.799e-05,2]
[351630497,1738675838474,-500.0,8.799e-05,2]
[351630498,1738675838483,-800.89,8.799e-05,2]
[351630499,1738675838494,-500.0,8.799e-05,2]
[351630500,1738675838504,-698.86,8.799e-05,2]
[351630501,1738675838513,-500.0,8.799e-05,2]
[351630502,1738675838522,-500.0,8.799e-05,2]
[351630503,1738675838531,-518.72,8.799e-05,2]
[351630504,1738675838540,-500.0,8.799e-05,2]
[351630505,1738675838550,-500.0,8.799e-05,2]
[351630506,1738675838559,-500.0,8.799e-05,2]
[351630507,1738675838568,-500.0,8.799e-05,2]
[351630508,1738675838578,-625.39,8.799e-05,2]
[351630509,1738675838587,-779.91,8.799e-05,2]
[351630510,1738675838597,-500.0,8.799e-05,2]
[351630511,1738675838606,-500.0,8.799e-05,2]
[351630513,1738675838615,-500.0,8.799e-05,2]
[351630515,1738675838624,-500.0,8.799e-05,2]
[351630518,1738675838633,-665.04,8.799e-05,2]
[351630520,1738675838642,-500.0,8.799e-05,2]
[351630521,1738675838652,-500.0,8.799e-05,2]
[351630523,1738675838661,-500.0,8.799e-05,2]
[351630525,1738675838670,-503.44,8.799e-05,2]
[351630527,1738675838679,-500.0,8.799e-05,2]
[351630529,1738675838688,-500.0,8.799e-05,2]
[351630531,1738675838697,-500.0,8.799e-05,2]
[351630533,1738675838706,-786.83,8.799e-05,2]
[351630537,1738675838717,-500.0,8.799e-05,2]
[351630541,1738675838727,-43457.84326799,8.8e-05,2]
[351630570,1738675838987,-98370.70859046,8.8e-05,2]
[351630571,1738675838999,-57883.0635,8.8e-05,2]
[351630572,1738675839025,-5653.99999997,8.8e-05,2]
[351630582,1738675840029,-49498.0950367,8.8e-05,2]
[351630583,1738675840040,-503.69,8.936e-05,2]
[351630584,1738675840050,-500.0,8.936e-05,2]
[351630585,1738675840059,-500.0,8.936e-05,2]
[351630586,1738675840068,-796.19,8.936e-05,2]
[351630587,1738675840078,-500.0,8.936e-05,2]
[351630588,1738675840089,-500.0,8.936e-05,2]
[351630589,1738675840099,-800.89,8.936e-05,2]
[351630590,1738675840108,-500.0,8.936e-05,2]
[351630591,1738675840118,-698.86,8.936e-05,2]
[351630592,1738675840128,-500.0,8.936e-05,2]
[351630593,1738675840140,-500.0,8.936e-05,2]
[351630594,1738675840149,-518.72,8.936e-05,2]
[351630595,1738675840158,-500.0,8.936e-05,2]
[351630596,1738675840167,-500.0,8.936e-05,2]
[351630597,1738675840176,-500.0,8.936e-05,2]
[351630598,1738675840186,-500.0,8.936e-05,2]
[351630599,1738675840195,-625.39,8.936e-05,2]
[351630600,1738675840204,-779.91,8.936e-05,2]
[351630601,1738675840213,-500.0,8.936e-05,2]
[351630602,1738675840222,-500.0,8.936e-05,2]
[351630603,1738675840232,-500.0,8.936e-05,2]
[351630604,1738675840241,-500.0,8.936e-05,2]
[351630605,1738675840250,-665.04,8.936e-05,2]
[351630606,1738675840259,-500.0,8.936e-05,2]
[351630607,1738675840269,-500.0,8.936e-05,2]
[351630608,1738675840278,-500.0,8.936e-05,2]
[351630609,1738675840287,-503.44,8.936e-05,2]
[351630610,1738675840296,-500.0,8.936e-05,2]
[351630611,1738675840305,-500.0,8.936e-05,2]
[351630612,1738675840315,-500.0,8.936e-05,2]
[351630613,1738675840324,-786.83,8.936e-05,2]
[351630614,1738675840335,-500.0,8.936e-05,2]
[351630615,1738675840345,-1000.0,8.96e-05,2]
[351630616,1738675840356,-500.0,9.041e-05,2]
[351630617,1738675840366,-531.91,9.042e-05,2]
[351630618,1738675840375,-503.69,9.073e-05,2]
[351630619,1738675840384,-500.0,9.073e-05,2]
[351630620,1738675840393,-500.0,9.073e-05,2]
[351630621,1738675840402,-796.19,9.073e-05,2]
[351630622,1738675840412,-500.0,9.073e-05,2]
[351630623,1738675840421,-500.0,9.073e-05,2]
[351630624,1738675840433,-800.89,9.073e-05,2]
[351630625,1738675840442,-500.0,9.073e-05,2]
[351630626,1738675840451,-698.86,9.073e-05,2]
[351630627,1738675840460,-500.0,9.073e-05,2]
[351630628,1738675840470,-500.0,9.073e-05,2]
[351630629,1738675840479,-518.72,9.073e-05,2]
[351630630,1738675840488,-500.0,9.073e-05,2]
[351630631,1738675840497,-500.0,9.073e-05,2]
[351630632,1738675840506,-500.0,9.073e-05,2]
[351630633,1738675840517,-500.0,9.073e-05,2]
[351630634,1738675840527,-625.39,9.073e-05,2]
[351630635,1738675840536,-779.91,9.073e-05,2]
[351630636,1738675840545,-500.0,9.073e-05,2]
[351630637,1738675840554,-380.84822539,9.073e-05,2]
[351630638,1738675840563,-500.0,9.073e-05,2]
[351630639,1738675840573,-500.0,9.073e-05,2]
[351630640,1738675840585,-665.04,9.073e-05,2]
[351630641,1738675840594,-500.0,9.073e-05,2]
[351630642,1738675840603,-500.0,9.073e-05,2]
[351630643,1738675840613,-500.0,9.073e-05,2]
[351630644,1738675840623,-503.44,9.073e-05,2]
[351630645,1738675840632,-500.0,9.073e-05,2]
[351630646,1738675840642,-634.17982906,9.073e-05,2]
[351630647,1738675840651,-500.0,9.073e-05,2]
[351630648,1738675840660,-786.83,9.073e-05,2]
[351630649,1738675840670,-500.0,9.073e-05,2]
[351630650,1738675840680,-161.92,9.125e-05,2]
[351630651,1738675840689,-250.0,9.13e-05,2]
[351630652,1738675840698,-238.33,9.167e-05,2]
[351630653,1738675840707,-503.69,9.21e-05,2]
[351630654,1738675840717,-500.0,9.21e-05,2]
[351630655,1738675840727,-500.0,9.21e-05,2]
[351630656,1738675840736,-796.19,9.21e-05,2]
[351630657,1738675840746,-500.0,9.21e-05,2]
[351630658,1738675840756,-500.0,9.21e-05,2]
[351630659,1738675840766,-800.89,9.21e-05,2]
[351630660,1738675840775,-500.0,9.21e-05,2]
[351630661,1738675840785,-698.86,9.21e-05,2]
[351630662,1738675840794,-500.0,9.21e-05,2]
[351630663,1738675840804,-500.0,9.21e-05,2]
[351630664,1738675840814,-518.72,9.21e-05,2]
[351630665,1738675840824,-500.0,9.21e-05,2]
[351630666,1738675840836,-500.0,9.21e-05,2]
[351630667,1738675840847,-500.0,9.21e-05,2]
[351630668,1738675840856,-500.0,9.21e-05,2]
[351630669,1738675840866,-625.39,9.21e-05,2]
[351630670,1738675840877,-779.91,9.21e-05,2]
[351630671,1738675840887,-500.0,9.21e-05,2]
[351630672,1738675840897,-500.0,9.21e-05,2]
[351630673,1738675840907,-500.0,9.21e-05,2]
[351630674,1738675840916,-665.04,9.21e-05,2]
[351630675,1738675840926,-500.0,9.21e-05,2]
[351630676,1738675840935,-500.0,9.21e-05,2]
[351630677,1738675840944,-500.0,9.21e-05,2]
[351630678,1738675840953,-503.44,9.21e-05,2]
[351630679,1738675840963,-500.0,9.21e-05,2]
[351630680,1738675840972,-500.0,9.21e-05,2]
[351630681,1738675840982,-786.83,9.21e-05,2]
[351630682,1738675840991,-500.0,9.21e-05,2]
[351630683,1738675841000,-503.69,9.347e-05,2]
[351630684,1738675841010,-500.0,9.347e-05,2]
[351630685,1738675841019,-500.0,9.347e-05,2]
[351630686,1738675841028,-796.19,9.347e-05,2]
[351630687,1738675841038,-500.0,9.347e-05,2]
[351630688,1738675841047,-500.0,9.347e-05,2]
[351630689,1738675841056,-800.89,9.347e-05,2]
[351630690,1738675841065,-500.0,9.347e-05,2]
[351630691,1738675841074,-698.86,9.347e-05,2]
[351630692,1738675841086,-500.0,9.347e-05,2]
[351630693,1738675841096,-500.0,9.347e-05,2]
[351630694,1738675841105,-518.72,9.347e-05,2]
[351630695,1738675841114,-500.0,9.347e-05,2]
[351630696,1738675841123,-193.37913474,9.347e-05,2]
[351630697,1738675841133,-500.0,9.347e-05,2]
[351630698,1738675841142,-500.0,9.347e-05,2]
[351630699,1738675841152,-625.39,9.347e-05,2]
[351630700,1738675841161,-779.91,9.347e-05,2]
[351630701,1738675841171,-500.0,9.347e-05,2]
[351630702,1738675841180,-500.0,9.347e-05,2]
[351630703,1738675841190,-500.0,9.347e-05,2]
[351630704,1738675841199,-665.04,9.347e-05,2]
[351630705,1738675841209,-500.0,9.347e-05,2]
[351630706,1738675841218,-500.0,9.347e-05,2]
[351630707,1738675841228,-500.0,9.347e-05,2]
[351630708,1738675841238,-503.44,9.347e-05,2]
[351630709,1738675841247,-500.0,9.347e-05,2]
[351630710,1738675841257,-500.0,9.347e-05,2]
[351630711,1738675841266,-786.83,9.347e-05,2]
[351630712,1738675841276,-500.0,9.347e-05,2]
[351630713,1738675841286,-394.57,9.352e-05,2]
[351630714,1738675841295,-503.69,9.484e-05,2]
[351630715,1738675841305,-500.0,9.484e-05,2]
[351630716,1738675841315,-500.0,9.484e-05,2]
[351630717,1738675841324,-796.19,9.484e-05,2]
[351630718,1738675841338,-279.89934134,9.484e-05,2]
[351630719,1738675841348,-500.0,9.484e-05,2]
[351630720,1738675841357,-800.89,9.484e-05,2]
[351630721,1738675841366,-500.0,9.484e-05,2]
[351630722,1738675841603,-698.86,9.484e-05,2]
[351630723,1738675841613,-500.0,9.484e-05,2]
[351630724,1738675841623,-500.0,9.484e-05,2]
[351630725,1738675841633,-518.72,9.484e-05,2]
[351630726,1738675841642,-500.0,9.484e-05,2]
[351630727,1738675841651,-500.0,9.484e-05,2]
[351630728,1738675841661,-500.0,9.484e-05,2]
[351630729,1738675841670,-625.39,9.484e-05,2]
[351630730,1738675841680,-779.91,9.484e-05,2]
[351630731,1738675841689,-500.0,9.484e-05,2]
[351630732,1738675841699,-500.0,9.484e-05,2]
[351630733,1738675841708,-500.0,9.484e-05,2]
[351630734,1738675841717,-665.04,9.484e-05,2]
[351630735,1738675841727,-500.0,9.484e-05,2]
[351630736,1738675841737,-358.60124539,9.484e-05,2]
[351630737,1738675841751,-500.0,9.484e-05,2]
[351630738,1738675841761,-503.44,9.484e-05,2]
[351630739,1738675841771,-500.0,9.484e-05,2]
[351630740,1738675841781,-500.0,9.484e-05,2]
[351630741,1738675841791,-786.83,9.484e-05,2]
[351630742,1738675841801,-500.0,9.484e-05,2]
[351630743,1738675841811,-3911.0,9.499e-05,2]
[351630744,1738675841820,-150.0,9.499e-05,2]
[351630745,1738675841829,-930.43,9.499e-05,2]
[351630746,1738675841845,-500.0,9.562e-05,2]
[351630747,1738675841854,-503.69,9.621e-05,2]
[351630748,1738675841864,-500.0,9.621e-05,2]
[351630749,1738675841874,-500.0,9.621e-05,2]
[351630750,1738675841883,-796.19,9.621e-05,2]
[351630751,1738675841892,-500.0,9.621e-05,2]
[351630752,1738675841902,-800.89,9.621e-05,2]
[351630753,1738675841911,-500.0,9.621e-05,2]
[351630754,1738675841921,-698.86,9.621e-05,2]
[351630755,1738675841930,-500.0,9.621e-05,2]
[351630756,1738675841940,-500.0,9.621e-05,2]
[351630757,1738675841949,-518.72,9.621e-05,2]
[351630758,1738675841958,-500.0,9.621e-05,2]
[351630759,1738675841967,-500.0,9.621e-05,2]
[351630760,1738675841976,-500.0,9.621e-05,2]
[351630761,1738675841986,-625.39,9.621e-05,2]
[351630762,1738675841995,-779.91,9.621e-05,2]
[351630763,1738675842005,-500.0,9.621e-05,2]
[351630764,1738675842017,-500.0,9.621e-05,2]
[351630765,1738675842026,-500.0,9.621e-05,2]
[351630766,1738675842036,-665.04,9.621e-05,2]
[351630767,1738675842047,-500.0,9.621e-05,2]
[351630768,1738675842056,-500.0,9.621e-05,2]
[351630769,1738675842065,-503.44,9.621e-05,2]
[351630770,1738675842075,-500.0,9.621e-05,2]
[351630771,1738675842087,-500.0,9.621e-05,2]
[351630772,1738675842096,-786.83,9.621e-05,2]
[351630773,1738675842105,-500.0,9.621e-05,2]
[351630774,1738675842114,-1569.0,9.7e-05,2]
[351630775,1738675842123,-503.69,9.758e-05,2]
[351630776,1738675842132,-500.0,9.758e-05,2]
[351630777,1738675842142,-500.0,9.758e-05,2]
[351630778,1738675842151,-796.19,9.758e-05,2]
[351630779,1738675842161,-500.0,9.758e-05,2]
[351630780,1738675842170,-800.89,9.758e-05,2]
[351630782,1738675842179,-500.0,9.758e-05,2]
[351630784,1738675842189,-698.86,9.758e-05,2]
[351630785,1738675842198,-500.0,9.758e-05,2]
[351630786,1738675842207,-500.0,9.758e-05,2]
[351630787,1738675842217,-518.72,9.758e-05,2]
[351630788,1738675842226,-500.0,9.758e-05,2]
[351630789,1738675842235,-500.0,9.758e-05,2]
[351630790,1738675842244,-500.0,9.758e-05,2]
[351630791,1738675842254,-625.39,9.758e-05,2]
[351630792,1738675842263,-779.91,9.758e-05,2]
[351630793,1738675842272,-500.0,9.758e-05,2]
[351630794,1738675842282,-621.44309213,9.758e-05,2]
[351630795,1738675842291,-500.0,9.758e-05,2]
[351630796,1738675842301,-665.04,9.758e-05,2]
[351630797,1738675842310,-500.0,9.758e-05,2]
[351630798,1738675842319,-500.0,9.758e-05,2]
[351630799,1738675842329,-503.44,9.758e-05,2]
[351630800,1738675842343,-500.0,9.758e-05,2]
[351630801,1738675842352,-500.0,9.758e-05,2]
[351630802,1738675842362,-786.83,9.758e-05,2]
[351630803,1738675842372,-500.0,9.758e-05,2]
[351630804,1738675842382,-150.3449016,9.8e-05,2]
[351630805,1738675842392,-1000.0,9.892e-05,2]
[351630806,1738675842401,-503.69,9.895e-05,2]
[351630807,1738675842411,-500.0,9.895e-05,2]
[351630808,1738675842420,-478.12747983,9.895e-05,2]
[351630809,1738675842434,-796.19,9.895e-05,2]
[351630810,1738675842444,-500.0,9.895e-05,2]
[351630811,1738675842453,-800.89,9.895e-05,2]
[351630812,1738675842463,-500.0,9.895e-05,2]
[351630813,1738675842474,-698.86,9.895e-05,2]
[351630814,1738675842483,-500.0,9.895e-05,2]
[351630815,1738675842492,-244.45,9.895e-05,2]
[351630816,1738675842501,-518.72,9.895e-05,2]
[351630817,1738675842511,-500.0,9.895e-05,2]
[351630818,1738675842520,-500.0,9.895e-05,2]
[351630819,1738675842529,-500.0,9.895e-05,2]
[351630820,1738675842539,-625.39,9.895e-05,2]
[351630821,1738675842548,-779.91,9.895e-05,2]
[351630822,1738675842557,-500.0,9.895e-05,2]
[351630823,1738675842567,-431.36943084,9.895e-05,2]
[351630824,1738675842576,-665.04,9.895e-05,2]
[351630825,1738675842587,-500.0,9.895e-05,2]
[351630826,1738675842597,-500.0,9.895e-05,2]
[351630827,1738675842606,-503.44,9.895e-05,2]
[351630828,1738675842615,-500.0,9.895e-05,2]
[351630829,1738675842625,-500.0,9.895e-05,2]
[351630830,1738675842635,-786.83,9.895e-05,2]
[351630831,1738675842644,-500.0,9.895e-05,2]
[351630832,1738675842654,-12756.0613,9.9e-05,2]
[351630833,1738675842663,-657.901,9.9e-05,2]
[351630834,1738675842674,-500.0,9.991e-05,2]
[351630835,1738675842683,-500.0,9.991e-05,2]
[351630836,1738675842693,-500.0,9.991e-05,2]
[351630837,1738675842702,-500.0,9.991e-05,2]
[351630838,1738675842712,-500.0,9.991e-05,2]
[351630839,1738675842721,-500.0,9.991e-05,2]
[351630840,1738675842731,-500.0,9.991e-05,2]
[351630841,1738675842740,-321.68,9.991e-05,2]
[351630842,1738675842750,-163.96677583,9.991e-05,2]
[351630843,1738675842759,-500.0,9.991e-05,2]
[351630844,1738675842769,-500.0,9.991e-05,2]
[351630845,1738675842778,-500.0,9.991e-05,2]
[351630846,1738675842788,-442.12723272,9.991e-05,2]
[351630847,1738675842797,-500.0,9.991e-05,2]
[351630848,1738675842806,-500.0,9.991e-05,2]
[351630850,1738675842816,-3974.4428055,9.992e-05,2]
[351630851,1738675842826,-842.0852367,9.992e-05,2]
[351630852,1738675842837,-2319.5234708,9.992e-05,2]
[351630853,1738675842847,-1683.2821341,9.992e-05,2]
[351630854,1738675842856,-1172.7693168,9.992e-05,2]
[351630856,1738675842866,-500.0,9.999e-05,2]
[351630857,1738675842876,-500.0,9.999e-05,2]
[351630858,1738675842885,-181.22,9.999e-05,2]
[351630859,1738675842895,-500.0,9.999e-05,2]
[351630860,1738675842904,-282.207652,9.999e-05,2]
[351630861,1738675842914,-293.512876,9.999e-05,2]
[351630862,1738675842923,-500.0,9.999e-05,2]
[351630863,1738675842933,-459.34123651,9.999e-05,2]
[351630864,1738675842943,-500.0,9.999e-05,2]
[351630865,1738675842954,-500.0,9.999e-05,2]
[351630866,1738675842963,-500.0,9.999e-05,2]
[351630867,1738675842973,-500.0,9.999e-05,2]
[351630868,1738675842983,-500.0,9.999e-05,2]
[351630869,1738675842992,-500.0,9.999e-05,2]
[351630870,1738675843002,-500.0,9.999e-05,2]
[351630871,1738675843011,-500.0,9.999e-05,2]
[351630872,1738675843021,-500.0,9.999e-05,2]
[351630873,1738675843031,-500.0,9.999e-05,2]
[351630874,1738675843040,-633.71,9.999e-05,2]
[351630875,1738675843050,-500.0,9.999e-05,2]
[351630876,1738675843059,-500.0,9.999e-05,2]
[351630877,1738675843068,-500.0,9.999e-05,2]
[351630878,1738675843078,-500.0,9.999e-05,2]
[351630879,1738675843089,-500.0,9.999e-05,2]
[351630880,1738675843098,-500.0,9.999e-05,2]
[351630881,1738675843107,-500.0,9.999e-05,2]
[351630882,1738675843116,-567.66812703,9.999e-05,2]
[351630883,1738675843126,-500.0,9.999e-05,2]
[351630884,1738675843136,-500.0,9.999e-05,2]
[351630885,1738675843145,-500.0,9.999e-05,2]
[351630886,1738675843155,-500.0,9.999e-05,2]
[351630887,1738675843164,-210.49,9.999e-05,2]
[351630888,1738675843173,-500.0,9.999e-05,2]
[351630889,1738675843182,-500.0,9.999e-05,2]
[351630890,1738675843191,-500.0,9.999e-05,2]
[351630891,1738675843201,-2371.7,9.999e-05,2]
[351630892,1738675843210,-500.0,9.999e-05,2]
[351630893,1738675843220,-500.0,9.999e-05,2]
[351630894,1738675843228,-500.0,9.999e-05,2]
[351630895,1738675843238,-500.0,9.999e-05,2]
[351630896,1738675843247,-500.0,9.999e-05,2]
[351630897,1738675843256,-500.0,9.999e-05,2]
[351630898,1738675843266,-500.0,9.999e-05,2]
[351630899,1738675843275,-1107.56,9.999e-05,2]
[351630900,1738675843284,-1107.56,9.999e-05,2]
[351630901,1738675843293,-1107.56,9.999e-05,2]
[351630902,1738675843303,-1107.56,9.999e-05,2]
[351630903,1738675843312,-1107.56,9.999e-05,2]
[351630904,1738675843322,-1107.56,9.999e-05,2]
[351630905,1738675843331,-1107.56,9.999e-05,2]
[351630906,1738675843347,-1107.56,9.999e-05,2]
[351630907,1738675843357,-1107.56,9.999e-05,2]
[351630908,1738675843367,-1107.56,9.999e-05,2]
[351630909,1738675843376,-1107.56,9.999e-05,2]
[351630911,1738675843386,-1107.56,9.999e-05,2]
[351630913,1738675843396,-1107.56,9.999e-05,2]
[351630915,1738675843406,-1107.56,9.999e-05,2]
[351630917,1738675843416,-1107.56,9.999e-05,2]
[351630918,1738675843429,-1107.56,9.999e-05,2]
[351630920,1738675843438,-1107.56,9.999e-05,2]
[351630921,1738675843447,-1107.56,9.999e-05,2]
[351630923,1738675843459,-1107.56,9.999e-05,2]
[351630924,1738675843468,-500.0,9.999e-05,2]
[351630925,1738675843478,-500.0,9.999e-05,2]
[351630926,1738675843488,-500.0,9.999e-05,2]
[351630927,1738675843498,-500.0,9.999e-05,2]
[351630928,1738675843513,-500.0,9.999e-05,2]
[351630929,1738675843523,-204.27,9.999e-05,2]
[351630930,1738675843533,-236.6,9.999e-05,2]
[351630931,1738675843541,-380.31,9.999e-05,2]
[351630932,1738675843551,-212.91,9.999e-05,2]
[351630933,1738675843561,-500.0,9.999e-05,2]
[351630934,1738675843571,-621.63,9.999e-05,2]
[351630935,1738675843580,-500.0,9.999e-05,2]
[351630936,1738675843594,-461.3,9.999e-05,2]
[351630937,1738675843603,-500.0,9.999e-05,2]
[351630938,1738675843612,-500.0,9.999e-05,2]
[351630939,1738675843622,-500.0,9.999e-05,2]
[351630940,1738675843631,-500.0,9.999e-05,2]
[351630941,1738675843641,-500.0,9.999e-05,2]
[351630942,1738675843650,-500.0,9.999e-05,2]
[351630943,1738675843660,-500.0,9.999e-05,2]
[351630944,1738675843669,-500.0,9.999e-05,2]
[351630945,1738675843678,-500.0,9.999e-05,2]
[351630946,1738675843688,-500.0,9.999e-05,2]
[351630947,1738675843697,-500.0,9.999e-05,2]
[351630948,1738675843706,-500.0,9.999e-05,2]
[351630949,1738675843716,-500.0,9.999e-05,2]
[351630950,1738675843726,-500.0,9.999e-05,2]
[351630951,1738675843736,-500.0,9.999e-05,2]
[351630952,1738675843746,-500.0,9.999e-05,2]
[351630953,1738675843756,-500.0,9.999e-05,2]
[351630954,1738675843765,-500.0,9.999e-05,2]
[351630955,1738675843775,-500.0,9.999e-05,2]
[351630956,1738675843785,-500.0,9.999e-05,2]
[351630957,1738675843794,-500.0,9.999e-05,2]
[351630958,1738675843805,-500.0,9.999e-05,2]
[351630959,1738675843815,-322.01781372,9.999e-05,2]
[351630960,1738675843825,-519.79444173,9.999e-05,2]
[351630961,1738675843835,-500.0,9.999e-05,2]
[351630962,1738675843845,-500.0,9.999e-05,2]
[351630963,1738675843855,-501.33418896,9.999e-05,2]
[351630964,1738675843864,-500.0,9.999e-05,2]
[351630965,1738675843874,-549.88,9.999e-05,2]
[351630966,1738675843884,-500.0,9.999e-05,2]
[351630967,1738675843893,-500.0,9.999e-05,2]
[351630968,1738675843903,-500.0,9.999e-05,2]
[351630969,1738675843913,-629.88,9.999e-05,2]
[351630970,1738675843923,-500.0,9.999e-05,2]
[351630971,1738675843933,-500.0,9.999e-05,2]
[351630972,1738675843943,-500.0,9.999e-05,2]
[351630973,1738675843952,-500.0,9.999e-05,2]
[351630974,1738675843962,-500.0,9.999e-05,2]
[351630975,1738675843972,-500.0,9.999e-05,2]
[351630976,1738675843982,-500.0,9.999e-05,2]
[351630977,1738675843991,-152.31,9.999e-05,2]
[351630978,1738675844001,-500.0,9.999e-05,2]
[351630979,1738675844011,-500.0,9.999e-05,2]
[351630980,1738675844021,-500.0,9.999e-05,2]
[351630981,1738675844032,-261.84,9.999e-05,2]
[351630982,1738675844042,-500.0,9.999e-05,2]
[351630983,1738675844052,-500.0,9.999e-05,2]
[351630984,1738675844062,-500.0,9.999e-05,2]
[351630985,1738675844072,-500.0,9.999e-05,2]
[351630986,1738675844082,-500.0,9.999e-05,2]
[351630987,1738675844093,-500.0,9.999e-05,2]
[351630988,1738675844103,-500.0,9.999e-05,2]
[351630989,1738675844113,-622.16,9.999e-05,2]
[351630990,1738675844123,-500.0,9.999e-05,2]
[351630991,1738675844133,-500.0,9.999e-05,2]
[351630992,1738675844143,-531.66,9.999e-05,2]
[351630993,1738675844153,-500.0,9.999e-05,2]
[351630994,1738675844163,-500.0,9.999e-05,2]
[351630995,1738675844173,-500.0,9.999e-05,2]
[351630996,1738675844183,-500.0,9.999e-05,2]
[351630997,1738675844192,-668.21219216,9.999e-05,2]
[351630998,1738675844202,-500.0,9.999e-05,2]
[351630999,1738675844212,-500.0,9.999e-05,2]
[351631000,1738675844223,-500.0,9.999e-05,2]
[351631001,1738675844232,-500.0,9.999e-05,2]
[351631002,1738675844242,-500.0,9.999e-05,2]
[351631003,1738675844251,-500.0,9.999e-05,2]
[351631004,1738675844261,-1000.0,9.999e-05,2]
[351631005,1738675844271,-683.11,9.999e-05,2]
[351631006,1738675844280,-543.65,9.999e-05,2]
[351631007,1738675844290,-500.0,9.999e-05,2]
[351631008,1738675844299,-548.11,9.999e-05,2]
[351631009,1738675844310,-500.0,9.999e-05,2]
[351631010,1738675844319,-572.13,9.999e-05,2]
[351631011,1738675844329,-500.0,9.999e-05,2]
[351631012,1738675844340,-500.0,9.999e-05,2]
[351631013,1738675844349,-500.0,9.999e-05,2]
[351631014,1738675844359,-500.0,9.999e-05,2]
[351631015,1738675844370,-51.44617105,9.999e-05,2]
[351631016,1738675844389,-448.55382895,9.999e-05,2]
[351631017,1738675844399,-500.0,9.999e-05,2]
[351631018,1738675844409,-500.0,9.999e-05,2]
[351631019,1738675844423,-500.0,9.999e-05,2]
[351631020,1738675844433,-566.48,9.999e-05,2]
[351631021,1738675844443,-221.35736609,9.999e-05,2]
[351631022,1738675844456,-390.52263391,9.999e-05,2]
[351631023,1738675844466,-269.47736589,9.999e-05,2]
[351631024,1738675844479,-265.27263411,9.999e-05,2]
[351631025,1738675844489,-300.4173659,9.999e-05,2]
[351631026,1738675844501,-199.5826341,9.999e-05,2]
[351631027,1738675844511,-564.10269678,9.999e-05,2]